fUST/lending_fUST_20240613
["ID","MTS","AMOUNT","RATE_DAILY","PERIOD"]
[329308347,1718232642353,-500.0,0.00016438,2]
[329308348,1718232642367,-500.0,0.00016438,2]
[329308349,1718232642382,-500.0,0.00016438,2]
[329308350,1718232642401,-637.07,0.00016438,2]
[329308351,1718232642416,-500.0,0.00016438,2]
[329308352,1718232642428,-500.0,0.00016438,2]
[329308353,1718232642443,-708.94,0.00016438,2]
[329308354,1718232642457,-500.0,0.00016438,2]
[329308355,1718232642469,-500.0,0.00016438,2]
[329308356,1718232642481,-500.0,0.00016438,2]
[329308357,1718232642493,-500.0,0.00016438,2]
[329308358,1718232642503,-500.0,0.00016438,2]
[329308359,1718232642514,-500.0,0.00016438,2]
[329308360,1718232642528,-500.0,0.00016438,2]
[329308361,1718232642547,-500.0,0.00016438,2]
[329308362,1718232642559,-956.68,0.00016438,2]
[329308363,1718232642570,-684.48,0.00016438,2]
[329308364,1718232642593,-500.0,0.00016438,2]
[329308365,1718232642610,-500.0,0.00016438,2]
[329308366,1718232642653,-510.54717067,0.00016438,2]
[329308367,1718232642672,-500.0,0.00016438,2]
[329308368,1718232642694,-500.0,0.00016438,2]
[329308369,1718232642706,-764.33,0.00016438,2]
[329308370,1718232642731,-500.0,0.00016438,2]
[329308371,1718232642766,-500.0,0.00016438,2]
[329308372,1718232642783,-500.0,0.00016438,2]
[329308373,1718232642800,-500.0,0.00016438,2]
[329308374,1718232642811,-585.44,0.00016438,2]
[329308375,1718232642836,-500.0,0.00016438,2]
[329308376,1718232642850,-509.01903119,0.00016438,2]
[329308377,1718232642869,-500.0,0.00016438,2]
[329308378,1718232642880,-500.0,0.00016438,2]
[329308379,1718232642899,-500.0,0.00016438,2]
[329308380,1718232642914,-546.87,0.00016438,2]
[329308381,1718232642926,-500.0,0.00016438,2]
[329308382,1718232642937,-500.0,0.00016438,2]
[329308383,1718232642948,-500.0,0.00016438,2]
[329308387,1718232642966,-500.0,0.00016438,2]
[329308388,1718232642977,-568.1,0.00016438,2]
[329308389,1718232642988,-4515.02127525,0.00016612,2]
[329308390,1718232643002,-500.0,0.00016711,2]
[329308391,1718232643156,-500.0,0.00016711,2]
[329308392,1718232643168,-20232.59999851,0.00016712,15]
[329308393,1718232643185,-500.0,0.00016712,2]
[329308394,1718232643201,-500.0,0.00016712,2]
[329308395,1718232643220,-500.0,0.00016712,2]
[329308396,1718232643262,-500.0,0.00016712,2]
[329308397,1718232643278,-500.0,0.00016712,2]
[329308398,1718232643299,-500.0,0.00016712,2]
[329308399,1718232643314,-500.0,0.00016712,2]
[329308400,1718232643325,-500.0,0.00016712,2]
[329308401,1718232643355,-500.0,0.00016712,2]
[329308402,1718232643385,-500.0,0.00016712,2]
[329308404,1718232643400,-500.0,0.00016712,2]
[329308406,1718232643411,-276.76,0.00016712,2]
[329308408,1718232643424,-500.0,0.00016712,2]
[329308410,1718232643435,-500.0,0.00016712,2]
[329308412,1718232643446,-500.0,0.00016712,2]
[329308414,1718232643462,-586.03506073,0.00016712,2]
[329308417,1718232643484,-500.0,0.00016712,2]
[329308419,1718232643506,-500.0,0.00016712,2]
[329308422,1718232643530,-500.0,0.00016712,2]
[329308423,1718232643548,-500.0,0.00016712,2]
[329308424,1718232643560,-500.0,0.00016712,2]
[329308426,1718232643572,-500.0,0.00016712,2]
[329308429,1718232643597,-500.0,0.00016712,2]
[329308431,1718232643613,-500.0,0.00016712,2]
[329308432,1718232643626,-500.0,0.00016712,2]
[329308434,1718232643638,-500.0,0.00016712,2]
[329308436,1718232643652,-500.0,0.00016712,2]
[329308439,1718232643671,-500.0,0.00016712,2]
[329308441,1718232643684,-564.553099,0.00016712,2]
[329308443,1718232643696,-500.0,0.00016712,2]
[329308445,1718232643710,-500.0,0.00016712,2]
[329308447,1718232643720,-241.83049484,0.00016712,2]
[329308449,1718232643734,-505.0845965,0.00016712,2]
[329308451,1718232643745,-500.0,0.00016712,2]
[329308452,1718232643756,-500.0,0.00016712,2]
[329308454,1718232643767,-500.0,0.00016712,2]
[329308455,1718232643779,-500.0,0.00016712,2]
[329308457,1718232643801,-500.0,0.00016712,2]
[329308458,1718232643816,-500.0,0.00016712,2]
[329308460,1718232643835,-529.65,0.00016712,2]
[329308462,1718232643853,-500.0,0.00016712,2]
[329308464,1718232643868,-500.0,0.00016712,2]
[329308467,1718232643890,-500.0,0.00016712,2]
[329308469,1718232643902,-500.0,0.00016712,2]
[329308470,1718232643918,-500.0,0.00016712,2]
[329308472,1718232643938,-500.0,0.00016712,2]
[329308474,1718232643965,-500.0,0.00016712,2]
[329308476,1718232643981,-600.98,0.00016712,2]
[329308479,1718232643994,-500.0,0.00016712,2]
[329308480,1718232644005,-500.0,0.00016712,2]
[329308482,1718232644017,-500.0,0.00016712,2]
[329308483,1718232644035,-500.0,0.00016712,2]
[329308484,1718232644048,-500.0,0.00016712,2]
[329308485,1718232644060,-500.0,0.00016712,2]
[329308486,1718232644073,-500.0,0.00016712,2]
[329308487,1718232644085,-508.24,0.00016712,2]
[329308488,1718232644096,-500.0,0.00016712,2]
[329308489,1718232644113,-500.0,0.00016712,2]
[329308490,1718232644126,-1044.54,0.00016712,2]
[329308491,1718232644142,-500.0,0.00016712,2]
[329308492,1718232644162,-500.0,0.00016712,2]
[329308493,1718232644176,-500.0,0.00016712,2]
[329308494,1718232644191,-500.0,0.00016712,2]
[329308495,1718232644206,-1963.01,0.00016712,2]
[329308496,1718232644224,-500.0,0.00016712,2]
[329308497,1718232644246,-500.0,0.00016712,2]
[329308498,1718232644275,-500.0,0.00016712,2]
[329308499,1718232644293,-500.0,0.00016712,2]
[329308500,1718232644307,-500.0,0.00016712,2]
[329308501,1718232644323,-2596.78,0.00016712,2]
[329308502,1718232644355,-500.0,0.00016712,2]
[329308503,1718232644375,-500.0,0.00016712,2]
[329308507,1718232644426,-500.0,0.00016712,2]
[329308509,1718232644460,-3399.77,0.00016712,2]
[329308510,1718232644472,-508.33945223,0.00016712,2]
[329308512,1718232644483,-500.0,0.00016712,2]
[329308513,1718232644495,-505.65989404,0.00016712,2]
[329308514,1718232644515,-500.0,0.00016712,2]
[329308515,1718232644539,-2194.64,0.00016712,2]
[329308516,1718232644559,-570.45,0.00016712,2]
[329308517,1718232644574,-500.0,0.00016712,2]
[329308518,1718232644592,-1501.41,0.00016712,2]
[329308519,1718232644606,-500.0,0.00016712,2]
[329308520,1718232644622,-500.0,0.00016712,2]
[329308521,1718232644634,-621.84608313,0.00016712,2]
[329308522,1718232644647,-500.0,0.00016712,2]
[329308523,1718232644663,-500.0,0.00016712,2]
[329308524,1718232644683,-1714.96,0.00016712,2]
[329308525,1718232644699,-500.0,0.00016712,2]
[329308526,1718232644715,-500.0,0.00016712,2]
[329308527,1718232644741,-500.0,0.00016712,2]
[329308528,1718232644754,-500.0,0.00016712,2]
[329308529,1718232644767,-500.0,0.00016712,2]
[329308530,1718232644777,-661.7,0.00016712,2]
[329308531,1718232644797,-500.0,0.00016712,2]
[329308532,1718232644808,-500.0,0.00016712,2]
[329308534,1718232644821,-579.7,0.00016712,2]
[329308536,1718232644835,-2897.46,0.00016712,2]
[329308537,1718232644850,-539.99,0.00016712,2]
[329308539,1718232644862,-500.0,0.00016712,2]
[329308541,1718232644877,-500.0,0.00016712,2]
[329308542,1718232644889,-500.0,0.00016712,2]
[329308543,1718232644901,-564.26,0.00016712,2]
[329308544,1718232644911,-500.0,0.00016712,2]
[329308545,1718232644922,-500.0,0.00016712,2]
[329308546,1718232644933,-500.0,0.00016712,2]
[329308547,1718232644947,-708.94,0.00016712,2]
[329308548,1718232644964,-500.0,0.00016712,2]
[329308549,1718232644979,-500.0,0.00016712,2]
[329308550,1718232644993,-500.0,0.00016712,2]
[329308551,1718232645005,-519.80016134,0.00016712,2]
[329308552,1718232645016,-500.0,0.00016712,2]
[329308553,1718232645027,-956.68,0.00016712,2]
[329308554,1718232645038,-684.48,0.00016712,2]
[329308555,1718232645048,-500.0,0.00016712,2]
[329308556,1718232645065,-500.0,0.00016712,2]
[329308557,1718232645076,-500.0,0.00016712,2]
[329308558,1718232645089,-764.33,0.00016712,2]
[329308559,1718232645103,-500.0,0.00016712,2]
[329308560,1718232645118,-500.0,0.00016712,2]
[329308561,1718232645131,-585.44,0.00016712,2]
[329308562,1718232645147,-393.30660927,0.00016712,2]
[329308563,1718232645168,-500.0,0.00016712,2]
[329308564,1718232645183,-500.0,0.00016712,2]
[329308565,1718232645205,-500.0,0.00016712,2]
[329308566,1718232645221,-546.87,0.00016712,2]
[329308567,1718232645251,-500.0,0.00016712,2]
[329308570,1718232645274,-500.0,0.00016712,2]
[329308572,1718232645289,-500.0,0.00016712,2]
[329308575,1718232645302,-568.1,0.00016712,2]
[329308579,1718232645313,-500.0,0.00016985,2]
[329308582,1718232645324,-595.2,0.00016985,2]
[329308585,1718232645354,-420.18544994,0.00016986,2]
[329308588,1718232645366,-500.0,0.00016986,2]
[329308590,1718232645384,-500.0,0.00016986,2]
[329308592,1718232645399,-500.0,0.00016986,2]
[329308594,1718232645412,-500.0,0.00016986,2]
[329308597,1718232645434,-500.0,0.00016986,2]
[329308598,1718232645453,-500.0,0.00016986,2]
[329308600,1718232645464,-500.0,0.00016986,2]
[329308602,1718232645478,-500.0,0.00016986,2]
[329308603,1718232645490,-507.69431826,0.00016986,2]
[329308605,1718232645501,-500.0,0.00016986,2]
[329308607,1718232645514,-500.0,0.00016986,2]
[329308609,1718232645526,-500.0,0.00016986,2]
[329308611,1718232645538,-500.0,0.00016986,2]
[329308613,1718232645562,-500.0,0.00016986,2]
[329308616,1718232645590,-500.0,0.00016986,2]
[329308617,1718232645608,-500.0,0.00016986,2]
[329308620,1718232645619,-500.0,0.00016986,2]
[329308621,1718232645638,-529.65,0.00016986,2]
[329308624,1718232645676,-500.0,0.00016986,2]
[329308626,1718232645692,-500.0,0.00016986,2]
[329308628,1718232645710,-500.0,0.00016986,2]
[329308629,1718232645729,-500.0,0.00016986,2]
[329308632,1718232645752,-600.98,0.00016986,2]
[329308634,1718232645775,-500.0,0.00016986,2]
[329308636,1718232645788,-500.0,0.00016986,2]
[329308637,1718232645803,-500.0,0.00016986,2]
[329308639,1718232645817,-630.09128489,0.00016986,2]
[329308641,1718232645827,-508.24,0.00016986,2]
[329308643,1718232645840,-500.0,0.00016986,2]
[329308645,1718232645850,-500.0,0.00016986,2]
[329308647,1718232645862,-1044.54,0.00016986,2]
[329308649,1718232645876,-500.0,0.00016986,2]
[329308651,1718232645888,-500.0,0.00016986,2]
[329308653,1718232645899,-1963.01,0.00016986,2]
[329308655,1718232645909,-500.0,0.00016986,2]
[329308657,1718232645922,-500.0,0.00016986,2]
[329308659,1718232645937,-500.0,0.00016986,2]
[329308661,1718232645951,-2596.78,0.00016986,2]
[329308663,1718232645964,-500.0,0.00016986,2]
[329308664,1718232645976,-500.0,0.00016986,2]
[329308666,1718232645988,-3399.77,0.00016986,2]
[329308668,1718232645999,-500.0,0.00016986,2]
[329308670,1718232646010,-2194.64,0.00016986,2]
[329308672,1718232646027,-570.45,0.00016986,2]
[329308674,1718232646038,-500.0,0.00016986,2]
[329308676,1718232646067,-1501.41,0.00016986,2]
[329308678,1718232646089,-500.0,0.00016986,2]
[329308680,1718232646104,-1714.96,0.00016986,2]
[329308681,1718232646116,-500.0,0.00016986,2]
[329308683,1718232646140,-500.0,0.00016986,2]
[329308686,1718232646170,-450.24372524,0.00016986,2]
[329308689,1718232646194,-661.7,0.00016986,2]
[329308690,1718232646210,-500.0,0.00016986,2]
[329308692,1718232646224,-500.0,0.00016986,2]
[329308694,1718232646245,-579.7,0.00016986,2]
[329308696,1718232646259,-2897.46,0.00016986,2]
[329308698,1718232646272,-539.99,0.00016986,2]
[329308701,1718232646299,-500.0,0.00016986,2]
[329308704,1718232646319,-500.0,0.00016986,2]
[329308709,1718232646355,-564.26,0.00016986,2]
[329308713,1718232646373,-500.0,0.00016986,2]
[329308717,1718232646387,-500.0,0.00016986,2]
[329308720,1718232646400,-500.0,0.00016986,2]
[329308722,1718232646417,-708.94,0.00016986,2]
[329308724,1718232646429,-500.0,0.00016986,2]
[329308726,1718232646452,-271.84423605,0.00016986,2]
[329308728,1718232646464,-500.0,0.00016986,2]
[329308731,1718232646478,-956.68,0.00016986,2]
[329308734,1718232646494,-684.48,0.00016986,2]
[329308738,1718232646512,-500.0,0.00016986,2]
[329308741,1718232646526,-500.0,0.00016986,2]
[329308746,1718232646552,-764.33,0.00016986,2]
[329308748,1718232646563,-500.0,0.00016986,2]
[329308752,1718232646578,-500.0,0.00016986,2]
[329308755,1718232646600,-585.44,0.00016986,2]
[329308758,1718232646613,-500.0,0.00016986,2]
[329308761,1718232646629,-500.0,0.00016986,2]
[329308764,1718232646642,-546.87,0.00016986,2]
[329308767,1718232646655,-500.0,0.00016986,2]
[329308770,1718232646675,-203.93474426,0.00016986,2]
[329308774,1718232646689,-568.1,0.00016986,2]
[329308777,1718232646710,-4515.02127524,0.00017078,2]
[329308779,1718232646725,-500.0,0.0001726,2]
[329308781,1718232646737,-500.0,0.0001726,2]
[329308784,1718232646760,-500.0,0.0001726,2]
[329308785,1718232646772,-500.0,0.0001726,2]
[329308787,1718232646785,-500.0,0.0001726,2]
[329308788,1718232646804,-500.0,0.0001726,2]
[329308790,1718232646817,-500.0,0.0001726,2]
[329308792,1718232646829,-500.0,0.0001726,2]
[329308794,1718232646840,-500.0,0.0001726,2]
[329308796,1718232646852,-500.0,0.0001726,2]
[329308798,1718232646868,-500.0,0.0001726,2]
[329308800,1718232646882,-500.0,0.0001726,2]
[329308802,1718232646894,-529.65,0.0001726,2]
[329308804,1718232646910,-500.0,0.0001726,2]
[329308806,1718232646926,-500.0,0.0001726,2]
[329308808,1718232646940,-500.0,0.0001726,2]
[329308810,1718232646954,-600.98,0.0001726,2]
[329308811,1718232646968,-500.0,0.0001726,2]
[329308812,1718232646981,-500.0,0.0001726,2]
[329308814,1718232646993,-508.24,0.0001726,2]
[329308815,1718232647010,-500.0,0.0001726,2]
[329308817,1718232647024,-500.0,0.0001726,2]
[329308820,1718232647043,-1044.54,0.0001726,2]
[329308821,1718232647058,-553.12,0.0001726,2]
[329308823,1718232647070,-500.0,0.0001726,2]
[329308825,1718232647082,-1963.01,0.0001726,2]
[329308827,1718232647098,-500.0,0.0001726,2]
[329308829,1718232647110,-1739.54583899,0.0001726,2]
[329308839,1718232647268,-857.23416101,0.0001726,2]
[329308840,1718232647286,-500.0,0.0001726,2]
[329308842,1718232647301,-510.32379303,0.0001726,2]
[329308845,1718232647320,-2889.44620697,0.0001726,2]
[329308847,1718232647351,-500.0,0.0001726,2]
[329308850,1718232647389,-1037.38568506,0.0001726,2]
[329308872,1718232647747,-500.0,0.00016438,2]
[329308873,1718232647766,-500.0,0.00016438,2]
[329308875,1718232647783,-568.1,0.00016712,2]
[329308878,1718232647800,-103.23730823,0.0001726,2]
[329308900,1718232648113,-608.09548811,0.0001726,2]
[329308910,1718232648253,-445.9215186,0.0001726,2]
[329308912,1718232648264,-570.45,0.0001726,2]
[329308914,1718232648277,-500.0,0.0001726,2]
[329308916,1718232648290,-1501.41,0.0001726,2]
[329308917,1718232648302,-500.0,0.0001726,2]
[329308919,1718232648319,-1714.96,0.0001726,2]
[329308921,1718232648350,-500.0,0.0001726,2]
[329308924,1718232648362,-661.7,0.0001726,2]
[329308926,1718232648376,-500.0,0.0001726,2]
[329308928,1718232648388,-579.7,0.0001726,2]
[329308930,1718232648399,-2897.46,0.0001726,2]
[329308932,1718232648411,-539.99,0.0001726,2]
[329308934,1718232648425,-424.56489109,0.0001726,2]
[329308936,1718232648435,-309.92,0.0001726,2]
[329308938,1718232648446,-564.26,0.0001726,2]
[329308939,1718232648457,-500.0,0.0001726,2]
[329308941,1718232648469,-500.0,0.0001726,2]
[329308944,1718232648489,-708.94,0.0001726,2]
[329308945,1718232648500,-500.0,0.0001726,2]
[329308947,1718232648511,-500.0,0.0001726,2]
[329308950,1718232648523,-956.68,0.0001726,2]
[329308952,1718232648535,-684.48,0.0001726,2]
[329308954,1718232648545,-500.0,0.0001726,2]
[329308955,1718232648556,-500.0,0.0001726,2]
[329308958,1718232648570,-764.33,0.0001726,2]
[329308959,1718232648580,-500.0,0.0001726,2]
[329308962,1718232648594,-500.0,0.0001726,2]
[329308964,1718232648613,-585.44,0.0001726,2]
[329308966,1718232648629,-500.0,0.0001726,2]
[329308968,1718232648643,-558.44,0.0001726,2]
[329308971,1718232648668,-546.87,0.0001726,2]
[329308974,1718232648686,-500.0,0.0001726,2]
[329308976,1718232648697,-194.59617247,0.0001726,2]
[329309374,1718232722660,-262.75470627,0.00010959,2]
[329309375,1718232722710,-208.49928648,0.00010959,2]
[329309376,1718232722767,-30.56600725,0.00010959,2]
[329309377,1718232722805,-232.18869902,0.00010959,2]
[329309378,1718232722859,-121.09130098,0.00010959,2]
[329309380,1718232866810,141.66340529,9.999e-05,2]
[329309381,1718232866852,633.21690434,9.999e-05,2]
[329309385,1718233594375,-225.99253865,0.00014976,2]
[329309386,1718233726172,-250.0,0.0001431,2]
[329309387,1718233751114,-287.68997438,0.00014743,2]
[329309388,1718233751320,-12.31002562,0.00014743,2]
[329309389,1718233751360,-170.06465668,0.00014744,2]
[329309414,1718233821597,-13744.8470117,0.00014742,2]
[329309415,1718233821623,-300.0,0.00014743,2]
[329309416,1718233821661,-20912.34575172,0.00014744,2]
[329309417,1718233821687,-1420.8936399,0.00014908,2]
[329309418,1718233821714,-32.76206635,0.00014976,2]
[329309454,1718233833985,-946.08721871,0.0001545,2]
[329309456,1718233833997,-420.0,0.00016218,2]
[329309458,1718233834008,-773.0564823,0.00016436,2]
[329309460,1718233834019,-393.4653901,0.00016436,2]
[329309462,1718233834030,-1426.9728866,0.00016437,2]
[329309464,1718233834040,-164.68563506,0.00016437,2]
[329309466,1718233834051,-199.71657769,0.00016438,2]
[329309467,1718233834062,-500.0,0.00016438,2]
[329309469,1718233834073,-500.0,0.00016438,2]
[329309470,1718233834084,-500.0,0.00016438,2]
[329309472,1718233834095,-500.0,0.00016438,2]
[329309474,1718233834107,-284.87089557,0.00016438,2]
[329309476,1718233834118,-500.0,0.00016438,2]
[329309478,1718233834128,-500.0,0.00016438,2]
[329309480,1718233834141,-500.0,0.00016438,2]
[329309482,1718233834153,-500.0,0.00016438,2]
[329309485,1718233834167,-500.0,0.00016438,2]
[329309487,1718233834178,-400.27161015,0.00016438,2]
[329309489,1718233834190,-500.0,0.00016438,2]
[329309491,1718233834201,-500.0,0.00016438,2]
[329309493,1718233834212,-500.0,0.00016438,2]
[329309494,1718233834226,-500.0,0.00016438,2]
[329309496,1718233834236,-276.23015115,0.00016438,2]
[329309498,1718233834249,-392.53894664,0.00016438,2]
[329309500,1718233834262,-630.09128489,0.00016438,2]
[329309503,1718233834275,-507.69431826,0.00016438,2]
[329309505,1718233834307,-500.0,0.00016438,2]
[329309508,1718233834333,-500.0,0.00016438,2]
[329309510,1718233834352,-500.0,0.00016438,2]
[329309512,1718233834364,-500.0,0.00016438,2]
[329309514,1718233834386,-645.75503108,0.00016438,2]
[329309515,1718233834408,-500.0,0.00016438,2]
[329309517,1718233834422,-500.0,0.00016438,2]
[329309519,1718233834435,-500.0,0.00016438,2]
[329309520,1718233834445,-500.0,0.00016438,2]
[329309522,1718233834456,-500.0,0.00016438,2]
[329309524,1718233834467,-500.0,0.00016438,2]
[329309526,1718233834494,-500.0,0.00016438,2]
[329309528,1718233834506,-500.0,0.00016438,2]
[329309532,1718233834518,-559.53090958,0.00016438,2]
[329309537,1718233834533,-500.0,0.00016438,2]
[329309541,1718233834562,-500.0,0.00016438,2]
[329309544,1718233834591,-500.0,0.00016438,2]
[329309546,1718233834608,-500.0,0.00016438,2]
[329309547,1718233834640,-500.0,0.00016438,2]
[329309549,1718233834650,-500.0,0.00016438,2]
[329309550,1718233834669,-500.0,0.00016438,2]
[329309552,1718233834686,-500.0,0.00016438,2]
[329309554,1718233834702,-500.0,0.00016438,2]
[329309556,1718233834715,-508.33945223,0.00016438,2]
[329309557,1718233834760,-500.0,0.00016438,2]
[329309559,1718233834771,-500.0,0.00016438,2]
[329309560,1718233834785,-500.0,0.00016438,2]
[329309562,1718233834829,-500.0,0.00016438,2]
[329309564,1718233834846,-500.0,0.00016438,2]
[329309566,1718233834858,-572.0,0.00016438,2]
[329309568,1718233834897,-500.0,0.00016438,2]
[329309570,1718233834909,-500.0,0.00016438,2]
[329309572,1718233834921,-500.0,0.00016438,2]
[329309574,1718233834942,-500.0,0.00016438,2]
[329309576,1718233834958,-500.0,0.00016438,2]
[329309578,1718233834969,-500.0,0.00016438,2]
[329309580,1718233834987,-500.0,0.00016438,2]
[329309582,1718233834998,-624.92,0.00016438,2]
[329309584,1718233835014,-500.0,0.00016438,2]
[329309586,1718233835029,-500.0,0.00016438,2]
[329309588,1718233835040,-320.02950395,0.00016438,2]
[329309590,1718233835054,-500.0,0.00016438,2]
[329309592,1718233835080,-500.0,0.00016438,2]
[329309595,1718233835104,-500.0,0.00016438,2]
[329309598,1718233835134,-500.0,0.00016438,2]
[329309601,1718233835166,-63.51631747,0.00016438,2]
[329309603,1718233835184,-436.48368253,0.00016438,2]
[329309605,1718233835195,-500.0,0.00016438,2]
[329309607,1718233835209,-500.0,0.00016438,2]
[329309609,1718233835244,-500.0,0.00016438,2]
[329309611,1718233835257,-500.0,0.00016438,2]
[329309612,1718233835272,-500.0,0.00016438,2]
[329309614,1718233835302,-500.0,0.00016438,2]
[329309616,1718233835326,-500.36327751,0.00016438,2]
[329309619,1718233835363,-500.0,0.00016438,2]
[329309622,1718233835391,-500.0,0.00016438,2]
[329309625,1718233835409,-500.0,0.00016438,2]
[329309627,1718233835419,-500.0,0.00016438,2]
[329309628,1718233835430,-531.75,0.00016438,2]
[329309630,1718233835442,-504.03322204,0.00016438,2]
[329309632,1718233835455,-500.0,0.00016438,2]
[329309633,1718233835473,-500.0,0.00016438,2]
[329309634,1718233835489,-500.0,0.00016438,2]
[329309635,1718233835527,-500.0,0.00016438,2]
[329309636,1718233835539,-500.0,0.00016438,2]
[329309637,1718233835570,-2177.48,0.00016438,2]
[329309638,1718233835583,-500.0,0.00016438,2]
[329309639,1718233835598,-500.0,0.00016438,2]
[329309640,1718233835624,-500.0,0.00016438,2]
[329309641,1718233835649,-500.0,0.00016438,2]
[329309642,1718233835663,-500.0,0.00016438,2]
[329309643,1718233835677,-500.0,0.00016438,2]
[329309644,1718233835694,-500.0,0.00016438,2]
[329309645,1718233835711,-500.0,0.00016438,2]
[329309646,1718233835751,-500.0,0.00016438,2]
[329309647,1718233835766,-503.10150568,0.00016438,2]
[329309648,1718233835794,-500.0,0.00016438,2]
[329309649,1718233835804,-500.0,0.00016438,2]
[329309650,1718233835817,-522.92,0.00016438,2]
[329309651,1718233835828,-500.0,0.00016438,2]
[329309652,1718233835840,-6180.6,0.00016438,2]
[329309653,1718233835854,-2404.16,0.00016438,2]
[329309654,1718233835875,-500.0,0.00016438,2]
[329309655,1718233835890,-500.0,0.00016438,2]
[329309656,1718233835906,-500.0,0.00016438,2]
[329309657,1718233835941,-500.0,0.00016438,2]
[329309658,1718233835960,-500.0,0.00016438,2]
[329309659,1718233835973,-500.0,0.00016438,2]
[329309660,1718233835983,-500.0,0.00016438,2]
[329309661,1718233835997,-500.0,0.00016438,2]
[329309662,1718233836010,-1444.28,0.00016438,2]
[329309663,1718233836022,-263.90394289,0.00016438,2]
[329309696,1718233840507,-236.09605711,0.00016438,2]
[329309698,1718233840521,-500.0,0.00016438,2]
[329309702,1718233840540,-1593.46,0.00016438,2]
[329309706,1718233840570,-496.35548321,0.00016438,2]
[329309709,1718233840594,-0.45785559,0.00016438,2]
[329309711,1718233841104,-499.54214441,0.00016438,2]
[329309712,1718233841118,-500.0,0.00016438,2]
[329309713,1718233841131,-552.22,0.00016438,2]
[329309714,1718233841143,-500.0,0.00016438,2]
[329309715,1718233841159,-500.0,0.00016438,2]
[329309716,1718233841171,-606.56,0.00016438,2]
[329309717,1718233841184,-500.0,0.00016438,2]
[329309718,1718233841204,-500.0,0.00016438,2]
[329309719,1718233841237,-500.0,0.00016438,2]
[329309720,1718233841250,-500.0,0.00016438,2]
[329309721,1718233841266,-500.0,0.00016438,2]
[329309722,1718233841296,-2821.92,0.00016438,2]
[329309723,1718233841307,-500.0,0.00016438,2]
[329309724,1718233841325,-500.0,0.00016438,2]
[329309725,1718233841337,-500.0,0.00016438,2]
[329309726,1718233841349,-551.24,0.00016438,2]
[329309727,1718233841364,-1015.42,0.00016438,2]
[329309728,1718233841377,-504.63814823,0.00016438,2]
[329309729,1718233841389,-500.0,0.00016438,2]
[329309730,1718233841405,-640.59,0.00016438,2]
[329309731,1718233841424,-538.07,0.00016438,2]
[329309732,1718233841452,-951.69,0.00016438,2]
[329309733,1718233841463,-500.0,0.00016438,2]
[329309734,1718233841477,-500.0,0.00016438,2]
[329309735,1718233841489,-500.0,0.00016438,2]
[329309736,1718233841509,-310.5906015,0.00016438,2]
[329309737,1718233841523,-500.0,0.00016438,2]
[329309738,1718233841548,-754.45,0.00016438,2]
[329309739,1718233841569,-500.0,0.00016438,2]
[329309740,1718233841595,-500.0,0.00016438,2]